[Event "51st Rilton Cup 2023-24"]
[Site "Stockholm"]
[Date "2023.12.31"]
[Round "5.7"]
[White "Krishna C R G"]
[Black "Socko, Bartosz"]
[Result "0-1"]
[ECO "E27"]
[WhiteElo "2396"]
[BlackElo "2550"]
[Annotator "TA"]
[PlyCount "111"]
[EventDate "2023.12.27"]
[EventType "swiss"]
[EventCountry "SWE"]
[SourceTitle "playchess.com"]
[Source "ChessBase"]
[SourceQuality "1"]
[TimeControl "40/5400+30:1800+30"]

{[%evp 11,111,-20,27,22,30,-25,-14,16,6,-106,-124,-124,-126,-108,-51,-51,-52,-36,-31,-67,-66,-64,-71,-69,-59,-63,-64,-64,-53,-62,-67,-68,-19,-21,-30,-23,-33,-103,-99,-141,-139,-134,-131,-172,-147,-147,-139,-150,-150,-139,-149,-139,-112,-97,-75,-75,-75,-75,-76,-81,-70,-68,-8,-18,-8,-72,-72,-72,-72,-72,-72,-206,-212,-318,-289,-285,-165,-354,-336,-421,-413,-350,-302,-303,-74,-74,-74,-77,-8,-349,-318,-255,-150,-475,-447,-970,-912,-868,-757,-963,-921,-601]} 1. d4 {[%emt 0:04:43]} Nf6 {[%emt 0:00:23]} 2. c4 {[%emt 0:00:10]} e6 {[%emt 0:00:05]} 3. Nc3 {[%emt 0:00:08]} Bb4 {[%emt 0:00:06]} 4. a3 {[%emt 0:00:07]} Bxc3+ {[%emt 0:00:06]} 5. bxc3 {[%emt 0:00:05]} O-O {[%emt 0:00:27]} 6. f3 {[%emt 0:00:06]} Ne8 {[%emt 0:00:37]} (6... d5 $142) 7. e4 $11 {[%emt 0:00:43] E27: Nimzo-Indian: Sämisch: 5...0-0 6 f3.} c5 {[%emt 0:01:06]} 8. Nh3 {[%emt 0:23:05]} ({White should play} 8. f4) 8... Nc6 {[%emt 0:02:22]} 9. d5 {[%emt 0:09:13] The position is equal.} Na5 {[%emt 0:00:44]} 10. e5 {[%emt 0:04:05] Wards off Nd6} (10. Bd3 $11 {keeps the balance.}) 10... d6 $17 {[%emt 0:03:27] [#]} 11. dxe6 $146 {[%emt 0:04:59]} ({Predecessor:} 11. Bg5 Qc7 12. exd6 Nxd6 13. Bf4 e5 14. Bg3 Bxh3 15. gxh3 Naxc4 16. Bd3 f5 17. Qe2 {0-1 Swayams,M (2450)-Villegas,P (2290) Titled Tuesday intern Qual4 25th April blitz 2017 (3)}) 11... Bxe6 {[%emt 0:00:34]} 12. Ng5 {[%emt 0:00:03]} Bf5 {[%emt 0:11:21]} (12... dxe5 $17 {Hoping for ...Qxd1+.} 13. Qc2 g6 14. Nxe6 fxe6) 13. Bd3 $15 {[%emt 0:04:26]} Bxd3 {[%emt 0:03:04]} (13... g6 $5 {[%cal Rf5d3]} 14. Bxf5 gxf5 $15) 14. Qxd3 {[%emt 0:00:03][%csl Gg5][%cal Rd3h7]} g6 {[%emt 0:00:07]} 15. Be3 {[%emt 0:12:40]} dxe5 {[%emt 0:06:09][%mdl 64] Discovered Attack} 16. Qxd8 {[%emt 0:04:00]} Rxd8 {[%emt 0:00:08]} 17. Bxc5 {[%emt 0:00:07]} Nb3 $1 {[%emt 0:00:06][%cal Ba5b3,Bb3a1,Ba1c2][%mdl 32]} 18. Bxf8 {[%emt 0:00:09]} Nxa1 {[%emt 0:00:05]} 19. Bc5 {[%emt 0:15:22]} Nc2+ {[%emt 0:21:34]} 20. Ke2 {[%emt 0:01:52]} Rc8 {[%emt 0:00:26]} 21. Be7 {[%emt 0:11:18]} Rxc4 {[%emt 0:04:52]} (21... Rc7 $15 {is more appropriate.} 22. Kd3 Rxe7 23. Kxc2 f5) 22. Rd1 $1 $11 {[%emt 0:01:22]} Rc7 {[%emt 0:03:29]} (22... Rxc3 $2 23. Rd8 Nd4+ 24. Kd2 Rc2+ 25. Kd3 $18) 23. Bd8 {[%emt 0:02:37]} Rc6 {[%emt 0:03:20] ...f6 would be deadly.} 24. Be7 {[%emt 0:00:08]} (24. Rd7 $15) 24... f6 $1 $17 {[%emt 0:03:26]} (24... Rxc3 $2 25. Rd8 Nd4+ 26. Kd2 Rc2+ 27. Kd3 $18) 25. Kd2 {[%emt 0:00:48]} Nxa3 {[%emt 0:00:58]} 26. Bxa3 {[%emt 0:00:09]} fxg5 {[%emt 0:00:13][%mdl 4096] Endgame KRB-KRN} 27. Re1 {[%emt 0:00:57]} Re6 {[%emt 0:00:28]} 28. Bc5 {[%emt 0:00:12]} b6 {[%emt 0:00:52]} 29. Bd4 {[%emt 0:00:01]} Nd6 {[%emt 0:00:16]} 30. Kd3 {[%emt 0:00:02]} Nf7 {[%emt 0:03:27] Strongly threatening ...Rd6.} 31. Be3 {[%emt 0:00:01]} Kg7 {[%emt 0:00:44]} 32. c4 {[%emt 0:00:48]} Rc6 {[%emt 0:01:50]} 33. Ra1 {[%emt 0:00:17]} Rc7 {[%emt 0:00:05]} 34. c5 {[%emt 0:01:42] Dodges Nd6} bxc5 {[%emt 0:00:11]} 35. Kc4 {[%emt 0:00:53][%cal Oa1a6]} h5 {[%emt 0:12:47]} 36. Ra6 {[%emt 0:00:37]} Rb7 {[%emt 0:00:19]} (36... g4 $15 37. fxg4 hxg4) 37. Bxc5 $11 {[%emt 0:00:14]} Rb2 {[%emt 0:00:24]} 38. Rxa7 {[%emt 0:00:05]} (38. Be7 $1 $11 {remains equal.}) 38... Rxg2 $17 {[%emt 0:00:26]} 39. Kd5 {[%emt 0:00:02]} Rc2 $1 {[%emt 0:04:51][%cal Oc2c3] Threatens to win with ...Rc3!} (39... Rxh2 40. Ke6 g4 41. Rxf7+ Kg8 42. Rf8+ Kg7 43. Ra8 $16 (43. Kxe5 Re2+ 44. Kf4 g5+ 45. Kf5 gxf3 $11)) 40. Rc7 {[%emt 0:00:01]} Ra2 $1 {[%emt 0:00:08][%cal Og7f6] White must now prevent ...Kf6!} (40... Rxh2 41. Ke6 g4 42. Rxf7+ Kg8 43. Rf8+ Kg7 44. Rf7+ (44. Kxe5 Re2+ 45. Kf4 g5+ 46. Kf5 gxf3 $11) 44... Kg8 45. fxg4 hxg4 46. Kf6 $16) 41. h3 {[%emt 0:12:39]} (41. Be7 $17) 41... Kf6 $19 {[%emt 0:09:30]} 42. Be7+ {[%emt 0:02:50]} (42. Ke4 {was the only chance.}) 42... Kf5 {[%emt 0:00:47]} 43. Bb4 {[%emt 0:00:02][%cal Rc7f7] Prevents Rd2+.} Nh6 {[%emt 0:00:17]} (43... Nd8 $142 {aiming for ...Ra1.} 44. Rd7 Ra1) 44. Re7 $2 {[%emt 0:05:25]} (44. Rh7) 44... Kf4 {[%emt 0:01:36]} 45. Rxe5 {[%emt 0:00:36]} Nf5 {[%emt 0:00:08] And now ...Ne3+ would win.} (45... Kxf3 46. Rxg5 Ra6 47. Re5 $17) 46. Re6 {[%emt 0:00:24]} Rb2 {[%emt 0:09:11]} (46... Kxf3 47. Rxg6 Ne3+ 48. Ke6 $17) 47. Bc5 {[%emt 0:01:18]} Rb3 $2 {[%emt 0:02:21]} (47... Kxf3 48. Rxg6 Kf4 49. Ke6 $17) (47... Rd2+ $19 {is more deadly.} 48. Kc4 Rc2+ 49. Kd5 Rh2 50. Re4+ Kxf3) 48. Rxg6 $17 {[%emt 0:00:35]} Rxf3 {[%emt 0:09:28]} 49. Rf6 {[%emt 0:01:22]} Kg3 {[%emt 0:00:06]} (49... Rxh3 50. Ke6 $11) (49... h4 $17 {[%cal Og5g4]} 50. Bd6+ Ke3) 50. Rg6 $2 {[%emt 0:02:29][%mdl 8192] [#]} (50. Ke5 $11 {and White stays safe.}) 50... Kh4 $1 $19 {[%emt 0:01:26]} ({Weaker is} 50... Kxh3 51. Rxg5 Ng3 52. Be7 $15) (50... Kf4 51. Rf6 $17) 51. Ke4 {[%emt 0:01:38] [#]} Rf1 {[%emt 0:01:35]} ({Stronger than} 51... Rxh3 52. Kxf5 Rf3+ 53. Ke5 $11) (51... Rc3 $1 $19 {[%cal Rc3c5]} 52. Bb6 Ng3+ 53. Kd5 Rf3) 52. Kd3 $2 {[%emt 0:01:06]} (52. Kd5 $17) 52... Ng3 {[%emt 0:02:19] Black is clearly winning.} ({Not} 52... Kxh3 53. Rxg5 h4 54. Rg8 $17) 53. Ke3 {[%emt 0:03:27]} (53. Be7 $142 Rd1+ 54. Kc4) 53... Rf5 {[%emt 0:01:00]} 54. Bb6 {[%emt 0:04:35]} Kxh3 {[%emt 0:00:20]} 55. Rc6 {[%emt 0:00:03]} g4 {[%emt 0:00:53]} 56. Kd4 {[%emt 0:01:02] Weighted Error Value: White=0.48/Black=0.21 (precise)} 0-1

[Event "51st Rilton Cup 2023-24"]
[Site "Stockholm"]
[Date "2023.12.31"]
[Round "5.8"]
[White "Moksh Amit Doshi"]
[Black "Hillarp Persson, Tiger"]
[Result "1-0"]
[ECO "E73"]
[WhiteElo "2366"]
[BlackElo "2493"]
[Annotator "TA"]
[PlyCount "115"]
[EventDate "2023.12.27"]
[EventType "swiss"]
[EventCountry "SWE"]
[SourceTitle "playchess.com"]
[Source "ChessBase"]
[SourceQuality "1"]
[TimeControl "40/5400+30:1800+30"]

{[%evp 14,115,30,31,66,36,52,50,60,9,8,0,0,0,0,0,33,10,17,10,13,10,98,10,25,13,45,58,70,-6,-8,-34,0,0,96,94,175,49,58,58,58,58,58,57,50,50,50,53,69,58,68,70,144,141,281,266,266,265,265,265,265,265,341,302,289,70,87,35,35,43,36,38,35,40,74,52,39,42,43,43,43,66,89,98,459,458,535,8,8,15,2418,2330,29974,29974,29974,29975,29975,29976,29975,12850,29977,29977,29980,29981]} 1. d4 {[%emt 0:07:16]} Nf6 {[%emt 0:00:11]} 2. c4 {[%emt 0:00:06]} g6 {[%emt 0:00:04]} 3. Nc3 {[%emt 0:00:07]} Bg7 {[%emt 0:00:08]} 4. e4 {[%emt 0:00:06]} d6 {[%emt 0:00:04]} 5. Be2 {[%emt 0:00:08]} O-O {[%emt 0:00:32]} 6. Be3 {[%emt 0:00:13]} e5 {[%emt 0:03:05]} 7. d5 {[%emt 0:00:38]} Na6 {[%emt 0:00:21]} 8. h4 {[%emt 0:00:11]} c6 {[%emt 0:06:01] E73: King's Indian: Averbakh Variation without 6...c5.} 9. h5 {[%emt 0:05:27]} cxd5 {[%emt 0:03:33]} 10. cxd5 {[%emt 0:00:12]} Nc5 {[%emt 0:00:07] White is slightly better.} 11. h6 {[%emt 0:07:05]} (11. Bxc5 $14 dxc5 12. Qd2) 11... Bh8 $11 {[%emt 0:00:30] [#]} 12. f3 $146 {[%emt 0:04:11]} ({Predecessor:} 12. Bxc5 dxc5 13. Nf3 Ne8 14. Nd2 Bd7 15. a4 Qg5 16. g3 Rd8 17. Qb3 b6 18. O-O-O {1-0 Praggnanandhaa,R (2608)-Yip,C (2430) Gelfand Challenge rapid 2021 (5)}) 12... Nh5 {[%emt 0:00:19]} 13. g4 {[%emt 0:02:14]} Nf4 {[%emt 0:02:58] Hoping for ...Ng2+.} 14. Bf1 {[%emt 0:08:33] Prevents Ng2+.} Qb6 {[%emt 0:24:35][%cal Oc5d3] ...Ncd3+! is the strong threat.} 15. Rb1 {[%emt 0:09:33]} (15. Qd2 $5 {[%cal Rc3a4]}) 15... a5 {[%emt 0:01:36]} (15... Ncd3+ $2 16. Kd2 Nf2 17. Qe1 Nxe4+ 18. fxe4 $18) 16. Qd2 {[%emt 0:01:39]} Bd7 {[%emt 0:01:25] Repels Na4} 17. Nh3 {[%emt 0:04:32]} Rfe8 {[%emt 0:12:00]} (17... Nxh3 $11 {remains equal.} 18. Bxh3 Rfc8) 18. Kf2 {[%emt 0:03:32]} ({White should try} 18. Nxf4 $16 exf4 19. Bf2 (19. Bxf4 Bxg4 20. fxg4 Nxe4 $11)) 18... Bf6 {[%emt 0:07:07]} 19. Kg3 {[%emt 0:02:41]} g5 {[%emt 0:00:07]} 20. Nf2 {[%emt 0:02:25]} a4 {[%emt 0:14:51]} 21. Be2 {[%emt 0:06:22]} (21. Nd3 $14) 21... Rec8 {[%emt 0:03:51]} 22. Rhc1 {[%emt 0:01:43]} Bd8 {[%emt 0:02:00]} 23. Nd3 {[%emt 0:07:04]} Nfxd3 {[%emt 0:06:46]} (23... Qa5 $11) 24. Bxd3 $16 {[%emt 0:00:22][%cal Oc3a4]} f6 {[%emt 0:00:07]} (24... Qb4 $16 {might work better.}) 25. Bf1 {[%emt 0:04:05]} (25. Nxa4 $1 $18 Qa5 26. Qxa5 Rxa5 27. Nxc5 dxc5 28. Rc2) 25... Qb4 {[%emt 0:02:21] [#]} 26. Nb5 $1 {[%emt 0:02:58][%mdl 64] Discovered Attack} Qxd2 {[%emt 0:00:11]} 27. Bxd2 {[%emt 0:00:04]} Bxb5 {[%emt 0:00:12]} 28. Bxb5 {[%emt 0:00:07]} Ba5 {[%emt 0:03:40] Black is weak on the light squares} 29. Be3 {[%emt 0:02:27]} Bb6 {[%emt 0:00:06][%cal Oc5e4]} 30. Bf2 {[%emt 0:04:42]} Kf8 {[%emt 0:03:23]} 31. Rc4 {[%emt 0:03:04][%cal Bc1c4,Bc4a4,Ba4b4,Bb4b6][%mdl 32] White is more active.} Ke7 {[%emt 0:00:32]} 32. Rbc1 {[%emt 0:04:23][%cal Ob5a4]} Ra5 {[%emt 0:01:17]} (32... Rc7 $14) 33. Bxa4 $1 {[%emt 0:00:11][%cal Oa2a3]} Rxa4 {[%emt 0:00:13]} (33... Kd8 $16 {keeps fighting.}) 34. Rxa4 $18 {[%emt 0:00:08][%mdl 64] Pin} Nxe4+ {[%emt 0:00:07]} 35. fxe4 {[%emt 0:00:10]} Bxf2+ {[%emt 0:00:06]} 36. Kxf2 {[%emt 0:00:05]} Rxc1 $16 {[%emt 0:00:10][%mdl 4096] Endgame KR-KR} 37. Rb4 {[%emt 0:00:24]} Rc7 {[%emt 0:00:22]} 38. Rb6 {[%emt 0:01:20]} Rd7 {[%emt 0:00:54]} 39. Ke2 $2 {[%emt 0:03:29]} (39. a4 $1 $18) 39... Kf7 $1 $14 {[%emt 0:00:40]} 40. a4 {[%emt 0:03:14]} (40. b4 $1 $16) 40... Kg6 {[%emt 0:00:07]} 41. a5 {[%emt 0:07:41] Strongly threatening b4.} Kxh6 {[%emt 0:00:00]} 42. b4 {[%emt 0:00:06][%cal Ob6c6] Black must now prevent Rc6!} Kg6 {[%emt 0:00:00]} 43. b5 {[%emt 0:00:54]} h5 {[%emt 0:00:00]} 44. Kf3 $1 {[%emt 0:19:41]} ({Don't play} 44. a6 bxa6 45. bxa6 (45. gxh5+ Kxh5 46. bxa6 g4 $11) 45... hxg4 $11) 44... hxg4+ {[%emt 0:02:22]} 45. Kxg4 {[%emt 0:00:16]} Rc7 {[%emt 0:00:17] [#]} 46. Rc6 $1 {[%emt 0:02:50][%mdl 64] Inhibits Rc4. Clearance} Rh7 {[%emt 0:02:47]} (46... bxc6 $2 47. b6 Rh7 48. dxc6 Rh4+ 49. Kg3 Rxe4 50. c7 $18) 47. Rxd6 {[%emt 0:00:07]} Rh4+ {[%emt 0:00:06]} 48. Kf3 {[%emt 0:00:41]} g4+ $2 {[%emt 0:01:26][%mdl 8192] [#]} (48... Rf4+ $16 49. Ke3 g4) 49. Kg2 $1 $18 {[%emt 0:01:04] aiming for Rd7.} Kg5 {[%emt 0:08:00]} 50. a6 $2 {[%emt 0:00:16]} (50. Rd7 $18) 50... bxa6 $11 {[%emt 0:00:10]} 51. bxa6 {[%emt 0:00:41]} Rh3 $2 {[%emt 0:00:23][%mdl 8192]} (51... Rh7 $11) 52. Rb6 $18 {[%emt 0:01:50] d6 would be deadly.} Ra3 {[%emt 0:00:12] [#]} 53. d6 $1 {[%emt 0:00:26][%cal Bd5d6,Bd6d7][%mdl 32]} Ra2+ {[%emt 0:00:21]} 54. Kf1 {[%emt 0:00:22]} Ra1+ {[%emt 0:00:12]} 55. Ke2 {[%emt 0:00:36]} Ra2+ {[%emt 0:00:52]} 56. Kd3 {[%emt 0:01:10] White threatens d7 and mate.} Ra1 {[%emt 0:07:15]} 57. Kc2 {[%emt 0:00:45]} g3 {[%emt 0:00:28]} 58. d7 {[%emt 0:00:23] An entertaining game by Moksh Amit Doshi.   Weighted Error Value: White=0.27 (precise) /Black=0.47} 1-0

[Event "51st Rilton Cup 2023-24"]
[Site "Stockholm"]
[Date "2023.12.31"]
[Round "5.9"]
[White "Bailet, Pierre"]
[Black "Olsson, William"]
[Result "0-1"]
[ECO "A07"]
[WhiteElo "2492"]
[BlackElo "2379"]
[Annotator "TA"]
[PlyCount "102"]
[EventDate "2023.12.27"]
[EventType "swiss"]
[EventCountry "SWE"]
[SourceTitle "playchess.com"]
[Source "ChessBase"]
[SourceQuality "1"]
[TimeControl "40/5400+30:1800+30"]

{[%evp 10,102,24,0,0,0,8,0,0,0,0,0,7,-6,-12,-2,0,0,0,-34,-30,-14,-10,-41,-21,-54,-37,-20,-9,-41,-29,-87,0,-41,-5,-10,-15,-81,-66,-81,-57,-64,-13,-101,-116,-107,-108,-110,-95,-104,-108,-130,-113,-114,-87,-67,-22,-66,-27,-32,-35,-40,-9,-8,-8,-8,0,0,0,-10,-10,-98,-7,-75,-73,-116,-119,-170,-175,-270,-198,-283,-149,-176,-88,-460,-452,-520,-520,-520,-520,-520,-513,-506,-505]} 1. Nf3 {[%emt 0:00:12]} d5 {[%emt 0:00:37]} 2. g3 {[%emt 0:00:33]} Nf6 {[%emt 0:00:24]} 3. Bg2 {[%emt 0:00:25]} c6 {[%emt 0:01:29]} 4. O-O {[%emt 0:00:37]} Bg4 {[%emt 0:01:45]} 5. h3 {[%emt 0:01:39]} Bxf3 {[%emt 0:01:02]} 6. Bxf3 {[%emt 0:00:40]} Nbd7 {[%emt 0:01:06] A07: Réti Opening: New York and Capablanca Systems.} 7. d3 {[%emt 0:05:37]} e5 {[%emt 0:06:05]} 8. Nc3 {[%emt 0:04:56]} Bc5 {[%emt 0:10:13] The position is equal.} 9. e4 {[%emt 0:02:56]} dxe4 {[%emt 0:00:54]} 10. Nxe4 {[%emt 0:00:58]} Nxe4 {[%emt 0:00:06]} 11. Bxe4 {[%emt 0:01:04]} O-O {[%emt 0:00:33]} 12. Bg2 {[%emt 0:14:05]} f5 {[%emt 0:02:46] [#]} 13. c3 $146 {[%emt 0:03:28]} ({Predecessor:} 13. Qe2 Qf6 14. Be3 f4 15. Bxc5 Nxc5 16. Bf3 Ne6 17. c3 Ng5 18. h4 fxg3 19. Bg4 {½-½ Moeller,P (2150)-Schreiber,K (1674) Mecklenburg VP-ch 2010 (6.3)}) 13... Bb6 {[%emt 0:02:43]} 14. d4 {[%emt 0:04:35]} f4 {[%emt 0:04:18]} 15. gxf4 {[%emt 0:07:58]} exd4 {[%emt 0:02:02]} 16. cxd4 {[%emt 0:02:35]} Nf6 $1 {[%emt 0:00:56]} 17. Be3 {[%emt 0:09:27]} Nd5 {[%emt 0:02:43][%mdl 1024] Black has compensation.} 18. Qb3 {[%emt 0:00:07]} Rf5 {[%emt 0:03:41]} 19. Be4 {[%emt 0:08:53]} Rh5 {[%emt 0:04:22]} 20. Bf3 {[%emt 0:00:53]} (20. Bd2 $11 {remains equal.}) 20... Rh4 {[%emt 0:03:41]} (20... Rxh3 $17 21. Kg2 Qd7) 21. Kg2 {[%emt 0:04:22]} Kh8 {[%emt 0:01:31]} (21... Qd7 {is interesting.} 22. Rh1 Qf7 23. Rae1 Rd8) 22. Bxd5 {[%emt 0:00:30]} cxd5 $40 {[%emt 0:00:08][%mdl 128] Black has some attack.} 23. Qd1 {[%emt 0:03:55]} (23. Rad1 $11) 23... Qd7 {[%emt 0:01:37]} 24. Qf3 {[%emt 0:00:51]} Rf8 {[%emt 0:00:59] Black is much more active.} 25. Rac1 $1 {[%emt 0:06:26]} Rf5 {[%emt 0:07:36]} ({Better is} 25... Bc7 $15) 26. Rg1 {[%emt 0:01:30]} (26. Bd2 $11) 26... Bc7 $17 {[%emt 0:02:32][%cal Rc7f4]} 27. Kf1 {[%emt 0:01:45]} Bxf4 {[%emt 0:02:19] White must now prevent ...Bh2.} 28. Rg4 {[%emt 0:00:59]} Bd6 {[%emt 0:03:09]} 29. Qg2 {[%emt 0:01:47]} Rhh5 {[%emt 0:00:27]} 30. Kg1 {[%emt 0:00:48]} Rf7 {[%emt 0:01:38]} 31. Rc3 {[%emt 0:05:54]} Rhf5 {[%emt 0:04:42]} 32. Rg5 {[%emt 0:00:32]} Bb4 {[%emt 0:03:01]} 33. Rc1 {[%emt 0:01:10]} Rxg5 {[%emt 0:02:13]} (33... h6 $5 {[%cal Rh6g5]} 34. Rxf5 Rxf5 $17) 34. Bxg5 {[%emt 0:00:33]} Qf5 {[%emt 0:07:09]} 35. Bh4 {[%emt 0:03:15]} h6 {[%emt 0:03:00]} (35... h5 $5 {[%cal Rb4d2]}) 36. Bg3 {[%emt 0:00:44]} Kh7 {[%emt 0:01:16]} 37. a3 {[%emt 0:00:13]} Be7 {[%emt 0:01:27]} 38. Rc7 {[%emt 0:00:48]} Bd8 {[%emt 0:00:44]} 39. Rxf7 {[%emt 0:00:31]} Qxf7 $11 {[%emt 0:00:10][%mdl 4096] Endgame KQB-KQB} 40. Kh2 {[%emt 0:01:21]} (40. b4 $11) 40... Bg5 {[%emt 0:04:49]} ({Black should play} 40... Bb6 $1 $17 41. Qf1 Qf3) 41. a4 {[%emt 0:30:53]} (41. Kg1 $11 {keeps the balance.}) 41... Qf5 $1 $17 {[%emt 0:30:34]} 42. Qf1 {[%emt 0:00:00]} Be3 {[%emt 0:00:00]} 43. Kg1 {[%emt 0:00:00]} (43. Be5 $17 {is a better defense.}) 43... Bxd4 $19 {[%emt 0:00:10]} 44. Qb5 (44. Qe2 $142) 44... b6 {[%emt 0:00:00]} (44... Qxh3 45. Qd3+ Kg8 46. Qxd4 $18) 45. b4 {[%emt 0:00:00]} (45. Qe2 $142) 45... Qe4 {[%emt 0:00:00]} ({Resist} 45... Qxh3 46. Qd3+ Kg8 47. Qxd4 $18) (45... Qf3 $19 46. Kf1 Bf6) 46. Qd7 {[%emt 0:00:00] [#]} Bf6 {[%emt 0:00:00]} ({Black should try} 46... Bc3 $1 $19 {...d4 would be deadly.} 47. b5 d4) 47. Qxa7 $2 {[%emt 0:00:00][%mdl 8192] [#] Loses the game.} (47. Qg4 $17 {is a better chance.}) 47... d4 $1 {[%emt 0:00:00] Hoping for ...d3. Black is clearly winning.} ({Weaker is} 47... Qxb4 48. Qd7 $17) 48. Qd7 {[%emt 0:00:00]} (48. Qxb6 $2 {perishes.} d3 49. Qd6 Qe1+ 50. Kg2 d2) 48... d3 {[%emt 0:00:00]} 49. Bf4 {[%emt 0:01:18]} Qxf4 {[%emt 0:00:00]} 50. Qxd3+ {[%emt 0:00:05]} Kh8 {[%emt 0:00:00]} 51. a5 {[%emt 0:00:05]} bxa5 {[%emt 0:00:00] Weighted Error Value: White=0.39/Black=0.20 (precise)} 0-1

[Event "51st Rilton Cup 2023-24"]
[Site "Stockholm"]
[Date "2023.12.31"]
[Round "5.10"]
[White "Malek, Jan"]
[Black "Nyysti, Sampsa"]
[Result "1-0"]
[ECO "E48"]
[WhiteElo "2434"]
[BlackElo "2339"]
[Annotator "RC"]
[PlyCount "45"]
[EventDate "2023.12.27"]
[EventType "swiss"]
[EventCountry "SWE"]
[SourceTitle "playchess.com"]
[Source "ChessBase"]
[SourceQuality "1"]
[TimeControl "40/5400+30:1800+30"]

1. d4 {[%emt 0:00:03]} Nf6 {[%emt 0:00:06]} 2. c4 {[%emt 0:00:06]} e6 {[%emt 0:00:07]} 3. Nc3 {[%emt 0:00:05]} Bb4 {[%emt 0:00:06]} 4. e3 {[%emt 0:00:05]} O-O {[%emt 0:00:35]} 5. Bd3 {[%emt 0:00:10]} Re8 {[%emt 0:00:29]} 6. Nge2 {[%emt 0:00:09]} d5 {[%emt 0:01:34]} 7. O-O {[%emt 0:00:08]} Nc6 {[%emt 0:13:25]} 8. a3 {[%emt 0:08:16]} Bd6 {[%emt 0:07:11]} 9. c5 {[%emt 0:23:42]} Bf8 {[%emt 0:00:18]} 10. f4 {[%emt 0:00:17]} a5 {[%emt 0:01:51]} 11. Bd2 {[%emt 0:01:24]} Bd7 {[%emt 0:10:36]} 12. Kh1 {[%emt 0:05:09]} b6 {[%emt 0:02:04]} 13. cxb6 {[%emt 0:00:08]} cxb6 {[%emt 0:00:02]} 14. Ng1 {[%emt 0:00:07]} Ne7 {[%emt 0:02:46]} 15. g4 {[%emt 0:02:19]} Bc6 {[%emt 0:04:12]} 16. Qf3 {[%emt 0:06:07]} Qb8 {[%emt 0:02:31]} 17. g5 {[%emt 0:08:40]} Nd7 {[%emt 0:00:25]} 18. Qh3 {[%emt 0:08:09]} g6 {[%emt 0:01:31]} 19. Nf3 {[%emt 0:00:05]} b5 {[%emt 0:07:18]} 20. Nd1 {[%emt 0:00:16]} Nf5 {[%emt 0:07:48]} 21. Nf2 {[%emt 0:01:43]} a4 {[%emt 0:02:29]} 22. Ng4 {[%emt 0:01:05]} b4 {[%emt 0:02:46]} 23. Nfe5 {[%emt 0:02:18]} 1-0

[Event "51st Rilton Cup 2023-24"]
[Site "Stockholm"]
[Date "2023.12.31"]
[Round "5.11"]
[White "Dotzer, Lukas"]
[Black "Oratovsky, Michael"]
[Result "1/2-1/2"]
[ECO "B36"]
[WhiteElo "2338"]
[BlackElo "2421"]
[Annotator "RC"]
[PlyCount "60"]
[EventDate "2023.12.27"]
[EventType "swiss"]
[EventCountry "SWE"]
[SourceTitle "playchess.com"]
[Source "ChessBase"]
[SourceQuality "1"]
[TimeControl "40/5400+30:1800+30"]

1. e4 {[%emt 0:00:03]} c5 {[%emt 0:06:56]} 2. Nf3 {[%emt 0:00:04]} Nc6 {[%emt 0:02:25]} 3. d4 {[%emt 0:00:07]} cxd4 {[%emt 0:00:04]} 4. Nxd4 {[%emt 0:00:06]} g6 {[%emt 0:00:04]} 5. c4 {[%emt 0:00:16]} Nf6 {[%emt 0:00:08]} 6. Nc3 {[%emt 0:00:11]} d6 {[%emt 0:00:06]} 7. Be2 {[%emt 0:03:57]} Nxd4 {[%emt 0:02:22]} 8. Qxd4 {[%emt 0:00:11]} Bg7 {[%emt 0:00:05]} 9. Be3 {[%emt 0:01:29]} O-O {[%emt 0:00:11]} 10. Qd2 {[%emt 0:00:25]} a5 {[%emt 0:00:35]} 11. O-O {[%emt 0:04:16]} a4 {[%emt 0:07:02]} 12. f3 {[%emt 0:02:44]} Qa5 {[%emt 0:05:22]} 13. Rab1 {[%emt 0:04:37]} Be6 {[%emt 0:06:59]} 14. Rfc1 {[%emt 0:04:21]} Rfc8 {[%emt 0:14:35]} 15. b3 {[%emt 0:04:06]} axb3 {[%emt 0:00:57]} 16. axb3 {[%emt 0:00:15]} Qb4 {[%emt 0:17:26]} 17. Na4 {[%emt 0:14:23]} Qxd2 {[%emt 0:00:42]} 18. Bxd2 {[%emt 0:00:10]} Nd7 {[%emt 0:02:06]} 19. Be3 {[%emt 0:15:58]} f5 {[%emt 0:13:32]} 20. c5 {[%emt 0:11:34]} dxc5 {[%emt 0:08:18]} 21. Nxc5 {[%emt 0:04:01]} Nxc5 {[%emt 0:00:28]} 22. Rxc5 {[%emt 0:00:08]} fxe4 {[%emt 0:05:41]} 23. fxe4 {[%emt 0:00:24]} Rxc5 {[%emt 0:01:06]} 24. Bxc5 {[%emt 0:00:07]} Ra2 {[%emt 0:02:06]} 25. Bc4 {[%emt 0:01:42]} Bxc4 {[%emt 0:00:16]} 26. bxc4 {[%emt 0:00:08]} Rc2 {[%emt 0:01:48]} 27. Rxb7 {[%emt 0:00:56]} Rxc4 {[%emt 0:00:51]} 28. Bxe7 {[%emt 0:00:14]} Rxe4 {[%emt 0:00:33]} 29. Bc5 {[%emt 0:00:43]} Bd4+ {[%emt 0:00:38]} 30. Bxd4 {[%emt 0:00:07]} Rxd4 {[%emt 0:00:05]} 1/2-1/2